Cogmind - Beta 16.1 @@@ ROGUE MODE // 2026.02.15 @ 14:28:01 Player: cptwinky Result: Destroyed by Y-72 Warden via exploding Wave Collapse Detector Performance ------------- Evolutions (9) 4500 Regions Visited (19) 3800 Robots Destroyed (158) 790 Value Destroyed (6136) 6136 Prototype IDs (73) 1460 Alien Tech Used (2) 400 Bonus (13417) 13417 TOTAL SCORE: 30503 Bonus ------- Triggered High Security 500 High Alert Combat Kills 1971 Follower Combat Kills 9506 Registered with UFD 300 Met Optimus in HQ 500 Met Imprinter 300 Met Zhirov 300 Scanned by Researcher 500 Friendly Fire -460 Cogmind --------- Core Integrity 0/1600 Matter 246/300 Energy 95/100 System Corruption 40% Temperature Cool (0) Movement Core (50) Location -1/Access Parts ------- > --- POWER (3) -------- (None) > --- PROPULSION (4) --- (None) > --- UTILITY (12) ----- Advanced Signal Interpreter Advanced Signal Interpreter Experimental Targeting Computer Graphene Brace > --- WEAPON (6) ------- (None) > --- INVENTORY (5) ---- Advanced Energy Well (500) Matter Compressor (250) Long-range Tractor Beam Cooled Nova Cannon CPS Tube (2) Peak State ------------ > --- POWER ------------ Reinforced Fission Core Reinforced Antimatter Reactor Improved Quantum Reactor > --- PROPULSION ------- Overtuned Huge Scrapsphere Overtuned Huge Scrapsphere > --- UTILITY ---------- Scrap Suit Advanced Cooling System Huge Storage Unit Advanced Sensor Array Advanced Signal Interpreter Experimental Targeting Computer Core Analyzer Advanced Transmission Jammer Improved Heavy Armor Plating Advanced Force Field > --- WEAPON ----------- Heavy Neutron Cannon 1B-0RG's Assimilator > --- INVENTORY -------- Light Quantum Reactor Experimental Heat Sink High-capacity Storage Unit Advanced Energy Well High-capacity Matter Pod High-capacity Matter Pod Matter Compressor Quantum Capacitor Centrium Medium Armor Plating Graphene Brace Advanced Shield Generator Advanced Component Analysis Suite System Restoration Module Improved System Restoration Module Long-range Tractor Beam Advanced Field Recycling Unit Transdimensional Reconstructor Long-range Proton Cannon Cooled Nova Cannon Missile Launcher Advanced Datajack CPS Tube Ionic Axe Dirty Bomb Trap [Rating: 195] Favorites ----------- Power Reinforced Fission Core Engine F-cell Engine Power Core Reinforced Fission Core Reactor Light Antimatter Reactor Propulsion Armored Wheel Treads Light Treads Wheel Armored Wheel Hover Unit Cooled Gravmag System Utility Huge Storage Unit Device Scrap Suit Storage Huge Storage Unit Processor Advanced Signal Interpreter Hackware Hacking Suite Protection Enhanced Scrap Shield Weapon 1B-0RG's Assimilator Energy Gun Spread Laser Energy Cannon Phase Cannon Ballistic Gun Assault Rifle Ballistic Cannon Light Cannon Launcher Missile Launcher Special Weapon Flamer Impact Weapon Hammer Slashing Weapon Ionic Axe Piercing Weapon Spear Special Melee Weapon 1B-0RG's Assimilator Build | -11 -10 -10 -9 -9 -6 -6 -6 -6 -5 -5 -5 -5 -5 -4 -4 -3 -3 -2 -1 ------- Run | Yrd Mat Sub Rec Scr Fac Low Low Zio Pro Fac Upp Upp Zhi Pro Fac Res Tes Res Acc Slots Evolved 18 | . . . . . 8 . . . . 2 . . . . 2 2 . 2 2 Power 2 | . . . . . 1 . . . . . . . . . . . . . 1 Propulsion 2 | . . . . . 1 . . . . 1 . . . . . . . . . Utility 10 | . . . . . 2 . . . . 1 . . . . 2 2 . 2 1 Weapon 4 | . . . . . 4 . . . . . . . . . . . . . . Parts Attached 144 | 6 12 17 2 5 16 2 . 1 4 15 2 1 4 . 13 2 5 6 31 Power 19 | 1 1 1 . 1 2 . . . . 2 . . . . 3 . . 1 7 Engine 8 | 1 1 1 . 1 1 . . . . 1 . . . . . . . . 2 Core 4 | . . . . . . . . . . 1 . . . . 3 . . . . Reactor 7 | . . . . . 1 . . . . . . . . . . . . 1 5 Propulsion 21 | 2 2 5 1 . 4 . . . . 3 . . 1 . . . . . 3 Treads 6 | 2 2 1 . . . . . . . . . . . . . . . . 1 Leg . | . . . . . . . . . . . . . . . . . . . . Wheel 14 | . . 4 1 . 4 . . . . 3 . . . . . . . . 2 Hover 1 | . . . . . . . . . . . . . 1 . . . . . . Flight . | . . . . . . . . . . . . . . . . . . . . Utility 67 | 1 5 4 1 2 4 2 . 1 3 6 2 1 2 . 7 1 4 5 16 Device 30 | . 1 2 . 1 2 1 . . 2 4 1 . . . 3 1 . 4 8 Storage 11 | 1 2 1 . . . . . . 1 1 1 1 1 . . . . . 2 Processor 6 | . . . . . 1 . . . . 1 . . . . 1 . 1 1 1 Hackware 4 | . . . . . . . . 1 . . . . . . 3 . . . . Protection 16 | . 2 1 1 1 1 1 . . . . . . 1 . . . 3 . 5 Artifact . | . . . . . . . . . . . . . . . . . . . . Weapon 37 | 2 4 7 . 2 6 . . . 1 4 . . 1 . 3 1 1 . 5 Energy Gun 5 | . . . . 1 1 . . . . . . . 1 . . . . . 2 Energy Cannon 7 | . . 1 . . 2 . . . . . . . . . 2 . 1 . 1 Ballistic Gun 5 | 2 . 1 . . 1 . . . . 1 . . . . . . . . . Ballistic Cannon 8 | . 2 2 . . 1 . . . . 1 . . . . . . . . 2 Launcher 4 | . 1 1 . . . . . . 1 1 . . . . . . . . . Special Weapon 2 | . . 1 . . . . . . . 1 . . . . . . . . . Impact Weapon 1 | . . 1 . . . . . . . . . . . . . . . . . Slashing Weapon 1 | . . . . . . . . . . . . . . . 1 . . . . Piercing Weapon 1 | . . . . 1 . . . . . . . . . . . . . . . Special Melee Weapon 3 | . 1 . . . 1 . . . . . . . . . . 1 . . . Unidentified Prototypes 19 | . . . . . 3 1 . . . 3 . . 4 . 2 . 2 . 4 Parts Lost 58 | . . 5 . . 6 . . . . 3 . . . . 2 1 . . 41 Power 11 | . . 1 . . 1 . . . . 1 . . . . . . . . 8 Propulsion 11 | . . 2 . . 2 . . . . 2 . . . . . . . . 5 Utility 24 | . . 2 . . 1 . . . . . . . . . 1 1 . . 19 Weapon 12 | . . . . . 2 . . . . . . . . . 1 . . . 9 Highest Loss Streak 16 | . . 4 . . 6 . . . . 2 . . . . 1 1 . . 16 To Critical Strikes 1 | . . . . . 1 . . . . . . . . . . . . . . Average Backups 18 | 3 9 15 19 19 15 19 19 19 18 20 19 18 19 21 20 21 21 22 20 Power . | . . . . . . . . 1 1 1 1 1 1 1 1 1 1 1 . Propulsion 1 | 1 3 6 6 5 1 1 1 1 1 . . . . . . . . . . Utility 9 | . 2 3 5 6 7 10 9 9 9 12 11 10 11 13 12 13 13 14 13 Weapon 4 | . 3 4 4 4 4 5 4 4 4 3 4 4 4 4 4 4 4 4 3 Tool/Special . | . . . . . . . . . . . . . . . . . . . . Unused Backups 41 | . 8 1 2 4 . . 4 . 1 6 1 1 1 . 2 . 1 3 6 Power 2 | . 1 . . . . . . . . . . . . . . . . 1 . Propulsion 5 | . 3 . 1 . . . . . . . 1 . . . . . . . . Utility 20 | . 1 1 . 2 . . 2 . . 4 . 1 . . 1 . 1 2 5 Weapon 9 | . 3 . 1 1 . . 2 . . 1 . . . . 1 . . . . Tool/Special 5 | . . . . 1 . . . . 1 1 . . 1 . . . . . 1 Average Slot Usage (%) 70 | . 99 89 99 98 64 66 66 66 65 58 51 52 51 52 58 65 65 67 64 Engine 5 | . 14 4 11 14 6 6 6 6 6 6 5 5 5 5 . . . . 1 Core 2 | . . . . . . . . . . . 5 5 5 5 9 9 9 5 2 Reactor 2 | . . . . . 1 6 6 6 6 3 . . . . . . . 2 6 Treads 4 | . 28 23 . . . . . . . . . . . . . . . . . Wheel 13 | . . 3 22 28 19 20 20 20 20 13 11 11 10 11 10 9 9 8 7 Device 5 | . . 9 . . 4 . . . . 4 5 5 6 5 8 19 20 23 16 Storage 7 | . 14 13 11 14 6 6 6 6 6 5 5 5 5 5 5 4 4 4 3 Processor 3 | . . . . . 4 6 6 6 6 3 . . . . . 4 5 8 10 Protection 6 | . 13 3 11 13 5 6 6 5 5 5 4 4 2 5 4 4 4 4 4 Energy Cannon 2 | . . . . . 4 5 5 6 5 2 . . . . 3 1 2 3 3 Ballistic Gun 1 | . 25 . . . . . . . . 1 . . . . . . . . . Ballistic Cannon 5 | . 2 25 20 3 . . . . . . 4 4 2 5 . . . . 2 Impact Weapon 1 | . . 2 11 14 1 . . . . . . . . . . . . . . Special Melee Weapon 3 | . . . . . 3 6 6 6 6 5 5 5 5 5 5 5 4 4 1 Peak Build Rating 195 | 6 10 30 30 23 109 116 117 117 118 139 138 137 140 138 156 170 175 185 195 Average Rating 100 | 5 7 11 28 19 77 114 115 116 116 129 135 136 132 138 149 168 166 181 157 On Entrance 101 | . 6 9 30 16 22 109 113 117 117 118 138 137 136 138 138 155 169 171 181 Avg Prop Armor Cover (%) 21 | . . . . . . . . . . . . . . . . . . . 21 Naked Turns . | . . . . . . . . . . . . . . . . . . . . Heaviest Build 262 | 12 34 99 99 99 177 181 181 181 181 197 199 199 199 197 216 218 231 223 262 Greatest Support 68 | 40 40 40 30 20 36 36 36 36 36 52 40 40 40 40 40 40 40 40 68 Greatest Overweight (x) 10 | . . 3 4 4 4 5 5 5 5 6 4 4 8 4 5 5 5 5 10 Average Overweight (x) 3 | . . . 3 4 3 4 4 4 4 3 4 4 4 4 4 4 5 5 4 Largest Inventory Capacity 25 | 8 15 25 25 25 25 25 25 25 25 25 25 25 25 25 25 25 25 25 25 Average Capacity 22 | 7 10 16 25 25 25 25 25 25 25 25 25 25 25 25 25 25 25 25 24 Most Carried 25 | 7 15 25 25 25 25 25 25 25 25 25 25 25 25 25 25 25 25 25 25 Average Carried 22 | 3 9 16 24 24 21 24 24 25 24 24 23 24 23 24 23 24 24 24 21 Final Capacity 25 | 8 15 25 25 25 25 25 25 25 25 25 25 25 25 25 25 25 25 25 5 Final Carried 25 | 7 15 24 25 25 25 25 25 25 25 25 24 23 24 25 23 24 25 25 5 Scrap Suit Usage (%) 1 | . . . . . . . . . . 1 . 1 . 1 . 1 . 1 . Parts Cannibalized 3 | . . . . . . . . . . 1 . 1 . 1 . . . . . Class Distribution -------------------- 54% | Mutant 16% | Scrapper 14% | Scavenger-Mutant 4% | Gunner 3% | Scavenger-Scrapper Dominant Class ---------------- Mutant | -10/Materials Mutant | -10/Subcaves Gunner | -9/Recycling Mutant | -9/Scraptown Mutant | -6/Factory Mutant | -6/Lower Caves Mutant | -6/Lower Caves Mutant | -6/Zion Mutant | -5/Proximity Caves Mutant | -5/Factory Scrapper | -5/Upper Caves Scrapper | -5/Upper Caves Scrapper | -5/Zhirov Scrapper | -4/Proximity Caves Scavenger-Scrapper | -4/Factory Scavenger-Mutant | -3/Research Scavenger-Mutant | -3/Testing Scavenger-Mutant | -2/Research Scavenger-Mutant | -1/Access Resources | -11 -10 -10 -9 -9 -6 -6 -6 -6 -5 -5 -5 -5 -5 -4 -4 -3 -3 -2 -1 ----------- Run | Yrd Mat Sub Rec Scr Fac Low Low Zio Pro Fac Upp Upp Zhi Pro Fac Res Tes Res Acc Matter Collected 19759 | 250 413 532 524 288 965 245 766 271 1068 3428 1802 979 95 64 2735 1549 1560 960 1265 Remotely . | . . . . . . . . . . . . . . . . . . . . Salvage Created 8499 | 83 622 272 631 . 171 195 301 . 78 1339 272 363 161 202 977 252 193 478 1909 Parts 314 | 9 30 24 23 . 8 . . . 1 40 10 16 4 7 45 7 2 15 73 Haulers Intercepted 4 | . 2 . . . . . . . . . . . . . 1 . . . 1 Recyclers Shooed 8 | . 2 . 1 . 2 . . . . 2 . . . . . . . . 1 Parts Field Recycled 142 | . . . . . . . . . . 10 8 7 5 . 24 23 39 2 24 Retrieved Matter 4040 | . . . . . . . . . . 377 244 33 120 . 690 455 1323 26 772 Parts Self-Destructed 128 | . . 13 . . . 2 . 3 55 . 13 21 1 20 . . . . . Prevented 2 | . . . . . . . . . . . . 2 . . . . . . . Parts Restored . | . . . . . . . . . . . . . . . . . . . . Kills | -11 -10 -10 -9 -9 -6 -6 -6 -6 -5 -5 -5 -5 -5 -4 -4 -3 -3 -2 -1 ------- Run | Yrd Mat Sub Rec Scr Fac Low Low Zio Pro Fac Upp Upp Zhi Pro Fac Res Tes Res Acc Combat Hostiles Destroyed 100 | . 12 13 4 . 1 . . . 2 10 4 7 . 3 12 . 3 3 26 Melee 1 | . . . . . . . . . . . . . . . . . . . 1 Guns 13 | . 10 . . . . . . . . 3 . . . . . . . . . Cannons 48 | . . 9 4 . . . . . 1 2 2 4 . 3 6 . 1 2 14 AOE 35 | . 2 4 . . 1 . . . 1 5 2 3 . . 6 . 2 1 8 Classes Destroyed 22 | 2 5 2 2 . 1 . . . . 5 1 . . . 1 . . 2 1 Worker 12 | 1 . . . . 1 . . . . 4 . . . . 5 . . . 1 Builder 4 | . . . 1 . . . . . . 1 . . . . 2 . . . . Tunneler 7 | 3 . . . . . . . . . . . . . . 1 . . . 3 Hauler 4 | . 2 . . . . . . . . . . . . . 1 . . . 1 Recycler 18 | . 1 . 3 . 1 . . . . 5 . . . . 2 2 . 2 2 Mechanic 1 | . . . . . . . . . . . . . . . . . . . 1 Operator 4 | . 1 . . . 1 . . . . . . . . . . . . 1 1 Watcher 3 | . . . . . . . . . . 1 . . . . . . . . 2 Swarmer 29 | . 3 4 . . . . . . 1 . 2 3 . . 4 . . . 12 Saboteur 1 | . . . . . . . . . . . . . . . . . . 1 . Grunt 28 | . 9 . . . . . . . 1 5 2 3 . . 5 . 1 . 2 Brawler 1 | . . . . . . . . . . . 1 . . . . . . . . Duelist 1 | . . . . . . . . . . . . . . . . . . 1 . Protector 2 | . . . . . . . . . . 1 . . . . . . . . 1 Sentry 5 | . . . 4 . . . . . . . . . . . . . . . 1 Specialist 3 | . . . . . . . . . . 1 . . . . 1 . 1 . . Hunter 13 | . . . . . 1 . . . . 1 . . . 3 1 . 1 2 4 Programmer 11 | . . . . . . . . . . 4 . 1 . . . . . . 6 Heavy 1 | . . . . . . . . . . . . . . . 1 . . . . Artisan 1 | . . 1 . . . . . . . . . . . . . . . . . Subdweller 9 | . . 9 . . . . . . . . . . . . . . . . . Scrapoid 1 | . . . . . . . . . . 1 . . . . . . . . . Packrat 3 | . . . . . . . . . . . 1 2 . . . . . . . Best Kill Streak 7 | 3 3 4 3 . 1 . . . 1 5 2 3 . 2 7 1 2 2 5 Combat Bots Only 5 | . 3 4 3 . 1 . . . 1 3 2 3 . 2 5 . 2 2 5 Max Kills in Single Turn 5 | 1 2 3 1 . 1 . . . 1 5 2 3 . 1 2 1 1 1 5 Gunslinging . | . . . . . . . . . . . . . . . . . . . . Exploded 5 | . 2 3 . . 1 . . . 1 2 2 3 . . 2 . 1 1 5 Melee 1 | . . . . . . . . . . . . . . . . . . . 1 Uniques/NPCs Destroyed . | . . . . . . . . . . . . . . . . . . . . Combat | -11 -10 -10 -9 -9 -6 -6 -6 -6 -5 -5 -5 -5 -5 -4 -4 -3 -3 -2 -1 -------- Run | Yrd Mat Sub Rec Scr Fac Low Low Zio Pro Fac Upp Upp Zhi Pro Fac Res Tes Res Acc Hostile Shots Fired 1075 | . 34 45 12 . 63 20 . . 16 63 23 31 . 16 146 17 74 35 480 Missed 330 | . 14 17 6 . 11 9 . . 8 27 10 14 . 9 40 5 18 8 134 Hits 745 | . 20 28 6 . 52 11 . . 8 36 13 17 . 7 106 12 56 27 346 Projectile 745 | . 20 28 6 . 52 11 . . 8 36 13 17 . 7 106 12 56 27 346 AOE 14 | . . 3 . . . . . . . . . . . . . . . . 11 Critical Strikes 39 | . . . . . 2 . . . . 2 . 1 . . 4 2 5 1 22 Actively Blocked 10 | . . . . . . . . . . . . . . . . 1 . . 9 Part Disruptions 2 | . . . . . . . . . . . . . . . . . . . 2 Damage Taken 17458 | . 226 630 91 . 919 89 . . 197 1245 338 322 . 169 2382 350 1115 612 8773 Core 2924 | . 21 66 17 . 109 17 . . 87 241 58 27 . 10 325 141 187 96 1522 Absorbed by Shields 1661 | . . . . . 8 . . . . 145 . . . . . 82 351 183 892 Redirected to Shielding 178 | . 12 . . . . . . . . . . . . . 48 13 . . 105 Regen/Repaired (Parts) 2050 | . 54 . . . 58 63 . . . 115 38 60 . 71 610 50 589 110 232 Core Remaining (%) 76 | 100 . . . 58 . . . . 74 . . . . 66 71 . 74 93 . Volleys Fired 622 | 8 42 31 10 . 36 21 23 . 22 67 19 26 34 8 62 15 20 41 137 Largest 3 | 2 2 2 2 . 2 1 1 . 1 1 1 1 1 1 1 1 1 1 3 Hottest 166 | 40 40 80 63 . 154 85 85 . 85 85 51 51 30 51 110 110 110 110 166 Shots Fired 736 | 16 83 58 23 . 46 21 23 . 22 69 19 26 34 8 62 15 21 41 149 Gun 163 | 16 82 . . . 1 . . . . 33 . . 31 . . . . . . Cannon 528 | . . 54 23 . 45 21 23 . 20 28 15 25 . 8 49 15 14 41 147 Launcher 36 | . 1 4 . . . . . . 2 7 3 1 . . 9 . 7 . 2 Special 9 | . . . . . . . . . . 1 1 . 3 . 4 . . . . Kinetic 316 | 16 82 52 23 . 21 . . . . 42 15 25 . 8 20 . . . 12 Thermal 344 | . . 2 . . 25 21 23 . 20 19 . . 31 . 29 15 14 41 104 Explosive 36 | . 1 4 . . . . . . 2 7 3 1 . . 9 . 7 . 2 Electromagnetic 31 | . . . . . . . . . . . . . . . . . . . 31 Robot Hit Streak 16 | 2 11 16 9 . 6 7 11 . 15 12 3 7 12 3 6 7 6 13 16 Robot Miss Streak 5 | 3 3 2 2 . 3 1 1 . 1 2 2 3 1 1 5 . 2 3 4 Penetration Max 1 | . . . . . . . . . . 1 . 1 . . 1 . . . . Secondary Targets 1 | . 1 . . . . . . . . . . . . . . . . . . Max Gunslinging Chain 1 | . 1 . . . . . . . . . . . . . . . . . . Capacitor 79 | . . . . . . . . . . . . . . . . . . . 79 Shots Hit Robots 482 | 9 53 41 23 1 27 18 24 . 14 45 9 16 31 6 31 7 12 24 91 Core Hits 278 | 4 22 24 9 . 7 4 8 . 7 49 6 11 7 4 32 3 21 13 47 Critical Kills 15 | . . . 1 . . . . . . 2 2 5 . 3 2 . . . . Critical Parts Destroyed 25 | . 1 . . . . . . . . 7 2 8 . 1 6 . . . . Critical Strikes 50 | . 1 3 2 . 1 . . . . 9 4 13 . 4 9 . . . 4 Destroy 40 | . 1 . . . . . . . . 9 4 13 . 4 9 . . . . Blast 6 | . . 3 1 . 1 . . . . . . . . . . . . . 1 Smash 1 | . . . 1 . . . . . . . . . . . . . . . . Sever 3 | . . . . . . . . . . . . . . . . . . . 3 Melee Attacks 63 | . . 15 7 1 3 2 5 . 1 . . . . . . 4 3 7 15 Impact 23 | . . 15 7 . 1 . . . . . . . . . . . . . . Slashing 23 | . . . . . . . . . . . . . . . . 2 . 6 15 Piercing . | . . . . . . . . . . . . . . . . . . . . Sneak Attacks 28 | . . . 4 1 2 2 5 . 1 . . . . . . 4 3 6 . Combat Hostiles . | . . . . . . . . . . . . . . . . . . . . Follow-up Attacks . | . . . . . . . . . . . . . . . . . . . . Damage Inflicted 20284 | 116 808 1009 740 . 753 497 582 . 594 3356 402 522 307 74 2132 317 1084 1397 5594 Guns 1617 | 112 700 . . . . . . . . 498 . . 307 . . . . . . Cannons 10651 | . . 727 344 . 753 497 582 . 411 627 164 282 . 74 970 124 211 895 3990 Explosions 6840 | . 90 282 . . . . . . 183 2231 238 240 . . 1162 . 873 330 1211 Melee 1067 | . . . 396 . . . . . . . . . . . . 193 . 172 306 Ramming 109 | 4 18 . . . . . . . . . . . . . . . . . 87 Kinetic 3934 | 112 700 672 344 . 147 . . . . 668 164 282 . 74 225 . . . 546 Thermal 9483 | . . 55 . . 606 497 582 . 411 1644 . . 307 . 878 124 211 1225 2943 Explosive 4964 | . 90 282 . . . . . . 183 1044 238 240 . . 1029 . 873 . 985 Electromagnetic 727 | . . . . . . . . . . . . . . . . . . . 727 Impact 396 | . . . 396 . . . . . . . . . . . . . . . . Slashing 671 | . . . . . . . . . . . . . . . . 193 . 172 306 Piercing . | . . . . . . . . . . . . . . . . . . . . Highest Corruption 40 | . 2 2 3 . 5 4 . . . 4 4 . . . . . 5 . 40 Average Corruption 3 | . 2 2 2 . 4 1 . . . 3 2 . . . . . 3 . 8 Corruption Purged 14 | . . . . . 1 4 . . . . 4 . . . . . . . 5 Corruption Blocked . | . . . . . . . . . . . . . . . . . . . . Effects 142 | . 6 38 15 . 15 1 . . . 15 3 . . . . . 9 . 40 Message Errors 23 | . 1 6 1 . 2 . . . . 5 1 . . . . . 1 . 6 Matter Fused 43 | . 4 13 6 . 5 1 . . . 4 1 . . . . . 3 . 6 Heat Flow Errors 13 | . . 4 1 . . . . . . 1 1 . . . . . 3 . 3 Energy Discharges 19 | . . 6 . . 2 . . . . 2 . . . . . . . . 9 Parts Rejected 4 | . . . . . 2 . . . . . . . . . . . . . 2 Parts Fused 2 | . . . . . 2 . . . . . . . . . . . . . . Data Loss (minor) 14 | . 1 4 2 . . . . . . 1 . . . . . . 1 . 5 Data Loss (major) 3 | . . 2 1 . . . . . . . . . . . . . . . . Misfires 11 | . . 2 3 . 1 . . . . 2 . . . . . . 1 . 2 Alerts 4 | . . 1 1 . . . . . . . . . . . . . . . 2 Misdirections 4 | . . . . . . . . . . . . . . . . . . . 4 Weapon Failures 2 | . . . . . 1 . . . . . . . . . . . . . 1 Overload Shots . | . . . . . . . . . . . . . . . . . . . . Overflow Damage 1233 | . 10 . 128 . 59 64 60 . . 494 20 8 . . 20 . 12 31 327 Projectiles 464 | . . . . . 59 64 60 . . 22 18 8 . . 15 . . 27 191 Explosions 615 | . 10 . . . . . . . . 472 2 . . . 5 . 12 4 110 Melee 154 | . . . 128 . . . . . . . . . . . . . . . 26 Knockbacks 30 | . 1 10 2 . 3 . . . . 2 2 3 . 1 . . . . 6 Impact 3 | . 1 . 2 . . . . . . . . . . . . . . . . Kinetic 24 | . . 10 . . 3 . . . . 1 2 3 . 1 . . . . 4 Secondary 3 | . . . . . . . . . . 1 . . . . . . . . 2 Self-Inflicted Damage 545 | . 19 10 . . . . . . . 256 . . . . 35 . . 48 177 Shots 11 | . 1 1 . . . . . . . 5 . . . . 1 . . 1 2 Rammed 11 | 2 7 . . . . . . . . . . . . . . . . . 2 Targets Rammed 12 | 2 8 . . . . . . . . . . . . . . . . . 2 Kicked . | . . . . . . . . . . . . . . . . . . . . Crushed 1 | . 1 . . . . . . . . . . . . . . . . . . Highest Temperature 343 | . 2 236 115 . 208 240 252 . 273 252 126 128 . . 96 104 174 94 343 Average Temperature 67 | . 2 90 37 . 62 134 93 . 101 54 30 41 . . 27 40 65 38 76 Received Heat Transfer 1404 | . 108 93 18 . 34 . . . 18 187 99 54 . 9 301 56 90 44 293 Effects 1 | . . . . . . . . . . . . . . . . . . . 1 Shutdowns 1 | . . . . . . . . . . . . . . . . . . . 1 Siege Activations . | . . . . . . . . . . . . . . . . . . . . Martial Activations . | . . . . . . . . . . . . . . . . . . . . Shielding Activations . | . . . . . . . . . . . . . . . . . . . . Robots Disrupted 2 | . . . . . . . . . . . . . . . . . 1 . 1 Combat Hostiles 2 | . . . . . . . . . . . . . . . . . 1 . 1 Robots Corrupted 9 | . . . 3 . . . . . . . . . . . . . . . 6 Combat Hostiles 3 | . . . . . . . . . . . . . . . . . . . 3 Parts Fried 12 | . . . 2 . . . . . . . . . . . . . . 1 9 Impact Corruptions 8 | . . . 6 . . . . . . . . . . . . . . . 2 Robots Melted . | . . . . . . . . . . . . . . . . . . . . Combat Hostiles . | . . . . . . . . . . . . . . . . . . . . Parts Melted 9 | . . . . . . . . . . 6 . . . . 1 . 1 . 1 Heat Transferred 6513 | . . 74 . . 703 592 703 . 518 1155 . . 725 . 100 . . 300 1643 Parts Sabotaged . | . . . . . . . . . . . . . . . . . . . . Parts Stolen . | . . . . . . . . . . . . . . . . . . . . Parts Stripped . | . . . . . . . . . . . . . . . . . . . . Power Chain Reactions 6 | . . . . . . . . . . . . . . . 1 . . 3 2 Alert | -11 -10 -10 -9 -9 -6 -6 -6 -6 -5 -5 -5 -5 -5 -4 -4 -3 -3 -2 -1 ------- Run | Yrd Mat Sub Rec Scr Fac Low Low Zio Pro Fac Upp Upp Zhi Pro Fac Res Tes Res Acc Maximum Alert Level 5 | . . . . . . . . . . 5 . . . . 4 2 4 3 5 Low Security (%) 40 | 100 100 . 100 . 100 . . . . 37 . . . . 21 . . . . Level 1 7 | . . . . . . . . . . 13 . . . . 15 . 25 . 7 Level 2 18 | . . . . . . . . . . 14 . . . . 23 100 20 17 17 Level 3 13 | . . . . . . . . . . 22 . . . . 12 . 21 82 2 Level 4 13 | . . . . . . . . . . 9 . . . . 27 . 33 . 34 Level 5 4 | . . . . . . . . . . 1 . . . . . . . . 27 High Security 1 | . . . . . . . . . . . . . . . . . . . 9 Max Security . | . . . . . . . . . . . . . . . . . . . . Peak Influence 1954 | 10 84 . 51 . 163 . . . . 1626 . . . . 1216 619 1456 964 1954 Initial 803 | . . . . . . . . . . 200 . . . . . 588 257 803 352 Average 544 | 1 20 . 6 . 52 . . . . 530 . . . . 625 522 813 785 1293 Influence Increases 12921 | 20 360 140 150 . 329 47 10 . 1036 2291 401 460 10 320 2023 488 1657 496 2683 Destroy 0b10 Robot/C 6080 | . 240 80 80 . 200 40 . . 660 880 220 280 . 180 880 200 920 200 1020 Destroy 0b10 Robot/NC 435 | 20 20 . 35 . 15 5 10 . . 90 . . 10 . 100 20 15 20 75 Destroy Leader 932 | . 44 . . . 40 . . . 60 136 40 20 . 30 170 44 130 42 176 Allied During Kill 2433 | . . . . . 32 2 . . 316 471 111 160 . 110 336 113 352 92 338 Trap Triggered on 0b10 30 | . . . . . 10 . . . . . . . . . 10 . . . 10 Successful Hack 294 | . 31 . 34 . 4 . . . . 82 . . . . . 18 28 46 51 Select Force Hacks 50 | . . . . . . . . . . . . . . . 50 . . . . Disable Machine 675 | . . . . . 15 . . . . 270 . . . . 120 15 75 30 150 Anti-Garrison Action 550 | . . . . . . . . . . . . . . . 200 . . . 350 Destroy Structure 1127 | . 10 . 1 . 13 . . . . 362 . . . . 142 48 122 51 378 Partial Spotted 15 | . . . . . . . . . . . . . . . . . 15 . . Lose Combat Pursuer 300 | . 15 60 . . . . . . . . 30 . . . 15 30 . 15 135 Influence Decreases 11014 | 20 360 140 150 . 254 122 10 . 718 986 1127 661 706 320 903 1150 687 1335 1365 Entered New Map 3210 | . . . . . . 29 . . . 118 601 171 696 . . 532 201 625 237 Time Decay 5373 | 20 360 140 150 . 171 75 10 . 558 598 486 490 10 300 533 318 326 310 518 Lost Part 473 | . . . . . 3 . . . . 30 . . . . 20 10 . . 410 Lost Ally 1508 | . . . . . 80 18 . . 160 240 40 . . 20 350 140 160 100 200 Purge Threat 450 | . . . . . . . . . . . . . . . . 150 . 300 . Squads Dispatched 90 | . 3 . . . 9 . . . 1 16 . . . . 17 6 17 2 19 Investigation 19 | . 2 . . . 2 . . . . 4 . . . . 5 1 3 . 2 Extermination 16 | . . . . . 1 . . . . 2 . . . . 3 2 3 1 4 Reinforcement 25 | . 1 . . . 3 . . . . 5 . . . . 6 . 7 . 3 Assault 24 | . . . . . . . . . 1 5 . . . . 3 3 1 1 10 Garrison 6 | . . . . . 3 . . . . . . . . . . . 3 . . Intercept . | . . . . . . . . . . . . . . . . . . . . Searches Triggered . | . . . . . . . . . . . . . . . . . . . . Construction Impeded 5 | . . . . . 1 . . . . 2 . . . . . . 2 . . Haulers Reinforced 5 | . . . . . 1 . . . . . . . . . 2 . 1 . 1 Active Scanning Responses . | . . . . . . . . . . . . . . . . . . . . Cargo Convoy Interrupts 1 | . . . . . 1 . . . . . . . . . . . . . . Stealth | -11 -10 -10 -9 -9 -6 -6 -6 -6 -5 -5 -5 -5 -5 -4 -4 -3 -3 -2 -1 --------- Run | Yrd Mat Sub Rec Scr Fac Low Low Zio Pro Fac Upp Upp Zhi Pro Fac Res Tes Res Acc Distress Signals 16 | . 1 . . . . . . . . . . . . . 6 . 6 2 1 Communications Jammed 69 | . . . . . . . . . . . . . . . 5 . 35 2 27 Distress Signals 66 | . . . . . . . . . . . . . . . 4 . 35 . 27 Times Spotted 427 | . 23 14 2 . 30 3 . . 30 46 13 15 . 9 69 20 42 17 94 Peak Tracking Total 15 | . 2 6 1 . 10 3 . . 9 5 4 5 . 3 8 4 7 5 15 Tactical Retreats 12 | . 1 1 . . . . . . . . 1 . . . 1 1 . 1 6 Traps | -11 -10 -10 -9 -9 -6 -6 -6 -6 -5 -5 -5 -5 -5 -4 -4 -3 -3 -2 -1 ------- Run | Yrd Mat Sub Rec Scr Fac Low Low Zio Pro Fac Upp Upp Zhi Pro Fac Res Tes Res Acc Traps Triggered 11 | . 3 2 . . . . . . . 1 . . . . . 1 1 . 3 Indirectly . | . . . . . . . . . . . . . . . . . . . . Trap Hack Attempts 83 | . 7 76 . . . . . . . . . . . . . . . . . Triggered . | . . . . . . . . . . . . . . . . . . . . Disarmed . | . . . . . . . . . . . . . . . . . . . . Reprogrammed 10 | . 2 8 . . . . . . . . . . . . . . . . . Reused 9 | . . 6 . . 1 . . . . . . . . . 1 . . . 1 Traps Extracted 9 | . 2 7 . . . . . . . . . . . . . . . . . Installed 9 | . . 6 . . 1 . . . . . . . . . 1 . . . 1 Triggered 3 | . . . . . 1 . . . . . . . . . 1 . . . 1 Most Traps Carried 4 | . 2 4 3 4 4 3 3 3 3 3 1 2 2 2 2 1 1 1 1 Machines | -11 -10 -10 -9 -9 -6 -6 -6 -6 -5 -5 -5 -5 -5 -4 -4 -3 -3 -2 -1 ---------- Run | Yrd Mat Sub Rec Scr Fac Low Low Zio Pro Fac Upp Upp Zhi Pro Fac Res Tes Res Acc Machines Disabled 50 | . . 4 . . 1 . . . . 18 . . . . 8 1 5 2 11 Max in Single Turn 4 | . . 3 . . . . . . . 4 . . . . 1 1 2 1 1 Garrison Access 4 | . . . . . . . . . . 1 . . . . 1 . . . 2 Machines Repaired . | . . . . . . . . . . . . . . . . . . . . Machines Dismantled . | . . . . . . . . . . . . . . . . . . . . Machines Sabotaged . | . . . . . . . . . . . . . . . . . . . . Overloaded Fab Kills 2 | . . . . . . . . . . . . . . . 2 . . . . Hacking | -11 -10 -10 -9 -9 -6 -6 -6 -6 -5 -5 -5 -5 -5 -4 -4 -3 -3 -2 -1 --------- Run | Yrd Mat Sub Rec Scr Fac Low Low Zio Pro Fac Upp Upp Zhi Pro Fac Res Tes Res Acc Machines Accessed 80 | . 8 2 9 3 5 . 1 . . 11 . . 4 . 12 6 7 5 7 Terminals 35 | . 6 . 5 . 2 . . . . 2 . . . . 5 4 4 3 4 Fabricators 7 | . . . . . . . . . . 3 . . . . 2 1 1 . . Repair Stations 6 | . 1 . . . . . . . . 2 . . . . 2 . 1 . . Recycling Units 12 | . 1 . 4 . 2 . . . . 2 . . . . . 1 . 1 1 Scanalyzers 5 | . . . . . 1 . . . . 2 . . . . 1 . . 1 . Garrison Access 5 | . . . . . . . . . . . . . . . 2 . 1 . 2 Total Hacks 197 | . 32 6 20 10 16 . 1 . . 22 . . 17 . 25 12 13 12 11 Successful 101 | . 11 6 11 10 7 . 1 . . 9 . . 17 . 11 6 3 6 3 Failed 96 | . 21 . 9 . 9 . . . . 13 . . . . 14 6 10 6 8 Catastrophic 13 | . 1 . 2 . 1 . . . . 1 . . . . 2 . 2 1 3 Database Lockouts . | . . . . . . . . . . . . . . . . . . . . Manual 84 | . 25 . 9 . 8 . . . . 11 . . . . 14 7 3 1 6 Terminals 96 | . 28 . 14 . 7 . . . . 4 . . . . 11 8 8 10 6 Fabricators 11 | . . . . . . . . . . 5 . . . . 3 2 1 . . Repair Stations 13 | . 3 . . . . . . . . 4 . . . . 4 . 2 . . Recycling Units 22 | . 1 . 6 . 6 . . . . 4 . . . . . 2 . 1 2 Scanalyzers 11 | . . . . . 3 . . . . 5 . . . . 2 . . 1 . Garrison Access 10 | . . . . . . . . . . . . . . . 5 . 2 . 3 Terminal Hacks 62 | . 9 6 5 10 1 . 1 . . 1 . . 17 . . 4 1 5 2 Record 14 | . . 5 . 4 . . . . . . . . 5 . . . . . . Part Schematic 6 | . 1 . 1 . . . . . . . . . 4 . . . . . . Robot Analysis 13 | . 3 . 1 5 . . . . . . . . 4 . . . . . . Prototype ID Bank 7 | . . . 3 . . . . . . . . . 4 . . . . . . Open Door 1 | . . . . . . . 1 . . . . . . . . . . . . Open DSF 1 | . . . . . . . . . . . . . . . . 1 . . . Level Access Points 1 | . . . . . . . . . . . . . . . . . . 1 . Branch Access Points 3 | . . . . . . . . . . 1 . . . . . 1 . 1 . Unreport Threat 3 | . . . . . . . . . . . . . . . . 1 . 2 . Locate Traps 5 | . 3 . . . 1 . . . . . . . . . . . . . 1 Recall Investigation 1 | . 1 . . . . . . . . . . . . . . . . . . Recall Extermination 1 | . . . . . . . . . . . . . . . . . . 1 . Zone Layout 3 | . 1 . . . . . . . . . . . . . . 1 . . 1 Proto ID Catalog 2 | . . 1 . 1 . . . . . . . . . . . . . . . Protovariant Controls 1 | . . . . . . . . . . . . . . . . . 1 . . Fabricator Hacks 1 | . . . . . . . . . . . . . . . 1 . . . . Network Status 1 | . . . . . . . . . . . . . . . 1 . . . . Repair Station Hacks 10 | . 2 . . . . . . . . 2 . . . . 4 . 2 . . Scan Component 5 | . 1 . . . . . . . . 1 . . . . 2 . 1 . . Repair 5 | . 1 . . . . . . . . 1 . . . . 2 . 1 . . Recycling Unit Hacks 3 | . . . 2 . 1 . . . . . . . . . . . . . . Retrieve Components 3 | . . . 2 . 1 . . . . . . . . . . . . . . Scanalyzer 7 | . . . . . 3 . . . . 1 . . . . 2 . . 1 . Insert Component 1 | . . . . . 1 . . . . . . . . . . . . . . Analyze 1 | . . . . . 1 . . . . . . . . . . . . . . Retrieve Study 5 | . . . . . 1 . . . . 1 . . . . 2 . . 1 . Garrison Access Hacks . | . . . . . . . . . . . . . . . . . . . . Unauthorized Hacks 18 | . . . 4 . 2 . . . . 5 . . . . 4 2 . . 1 Terminals 3 | . . . 1 . . . . . . . . . . . 1 1 . . . Assimilate 1 | . . . . . . . . . . . . . . . 1 . . . . Botnet 2 | . . . 1 . . . . . . . . . . . . 1 . . . Fabricators 5 | . . . . . . . . . . 3 . . . . 2 . . . . Liberate 2 | . . . . . . . . . . 2 . . . . . . . . . Haulers 2 | . . . . . . . . . . 1 . . . . 1 . . . . Overload 1 | . . . . . . . . . . . . . . . 1 . . . . Repair Stations . | . . . . . . . . . . . . . . . . . . . . Recycling Units 8 | . . . 3 . 2 . . . . 2 . . . . . 1 . . . Reject 2 | . . . 2 . . . . . . . . . . . . . . . . Mask 1 | . . . 1 . . . . . . . . . . . . . . . . Fedlink 2 | . . . . . 2 . . . . . . . . . . . . . . Scrapoids 3 | . . . . . . . . . . 2 . . . . . 1 . . . Scanalyzers . | . . . . . . . . . . . . . . . . . . . . Garrison Access 2 | . . . . . . . . . . . . . . . 1 . . . 1 Jam 2 | . . . . . . . . . . . . . . . 1 . . . 1 Data Cores Recovered 2 | . . . . . . . . . . . . . . . . . . 1 1 Used 2 | . . . . . . . . . . . . . . . . . . 1 1 Hacking Detections 57 | . 7 . 6 . 4 . . . . 9 . . . . 10 4 7 4 6 Full Trace Events 9 | . . . 1 . . . . . . 1 . . . . 3 . 3 . 1 Feedback Events 1 | . . . 1 . . . . . . . . . . . . . . . . Corruption 1 | . . . 1 . . . . . . . . . . . . . . . . Feedback Blocked . | . . . . . . . . . . . . . . . . . . . . Robot Schematics Acquired 2 | . . . . . . . . . . . . . . . . . 1 1 . Robots Built . | . . . . . . . . . . . . . . . . . . . . Authchips . | . . . . . . . . . . . . . . . . . . . . Time . | . . . . . . . . . . . . . . . . . . . . Total Robot Build Rating . | . . . . . . . . . . . . . . . . . . . . Part Schematics Acquired 14 | . 1 . 1 . 1 . . . . . . . 4 . . . 6 1 . Parts Built . | . . . . . . . . . . . . . . . . . . . . Authchips . | . . . . . . . . . . . . . . . . . . . . Time . | . . . . . . . . . . . . . . . . . . . . Total Part Build Rating . | . . . . . . . . . . . . . . . . . . . . Part Studies Acquired 5 | . . . . . 1 . . . . 1 . . . . 2 . . 1 . Parts Repaired 5 | . 1 . . . . . . . . 1 . . . . 2 . 1 . . Time 254 | . 26 . . . . . . . . 19 . . . . 155 . 54 . . Parts Recycled . | . . . . . . . . . . . . . . . . . . . . Recycled Matter . | . . . . . . . . . . . . . . . . . . . . Retrieved Matter . | . . . . . . . . . . . . . . . . . . . . Retrieved Components 4 | . . . 4 . . . . . . . . . . . . . . . . Parts Scanalyzed 1 | . . . . . 1 . . . . . . . . . . . . . . Part Schematics Acquired 1 | . . . . . 1 . . . . . . . . . . . . . . Parts Damaged . | . . . . . . . . . . . . . . . . . . . . Bothacking | -11 -10 -10 -9 -9 -6 -6 -6 -6 -5 -5 -5 -5 -5 -4 -4 -3 -3 -2 -1 ------------ Run | Yrd Mat Sub Rec Scr Fac Low Low Zio Pro Fac Upp Upp Zhi Pro Fac Res Tes Res Acc Used RIF Installer . | . . . . . . . . . . . . . . . . . . . . Robots Hacked 24 | . . . . 1 2 2 4 . 1 1 1 . 3 . 4 2 2 1 . Non-combat . | . . . . . . . . . . . . . . . . . . . . Combat 24 | . . . . 1 2 2 4 . 1 1 1 . 3 . 4 2 2 1 . Robot Hacks Applied 25 | . . . . 1 2 2 5 . 1 1 1 . 3 . 4 2 2 1 . parse_system 25 | . . . . 1 2 2 5 . 1 1 1 . 3 . 4 2 2 1 . Relay Couplers Released 5 | . . . . . 3 . . . . . . . . . . . . . 2 Machine Destruction 2 | . . . . . . . . . . . . . . . . . . . 2 Programmers 3 | . . . . . 3 . . . . . . . . . . . . . . Fabnet Peak Effective % . | . . . . . . . . . . . . . . . . . . . . Robots Rewired 3 | . . . . . . . . . 2 . . . . . . . 1 . . Allies Hacked 13 | . . . . . 2 . . . . 1 2 . . . 5 . 1 . 2 Hacks Repelled 2 | . . . . . . . . . . . . . . . . . . 2 . Allies | -11 -10 -10 -9 -9 -6 -6 -6 -6 -5 -5 -5 -5 -5 -4 -4 -3 -3 -2 -1 -------- Run | Yrd Mat Sub Rec Scr Fac Low Low Zio Pro Fac Upp Upp Zhi Pro Fac Res Tes Res Acc Total Allies 19 | . . . . . . . . . 2 10 . . . . 1 5 1 . . Largest Group 10 | . . . . . . . . . 2 10 . . . . 1 5 1 . . Highest-Rated Group 473 | . . . . . . . . . 79 473 . . . . 45 320 90 . . Highest-Rated Ally 90 | . . . . . . . . . 49 50 . . . . 45 64 90 . . Initial UFD Resources 43 | . . . . . 22 36 36 36 38 38 32 32 32 34 34 38 35 39 43 Total Orders 21 | . . . . . 1 1 4 . 2 5 . 2 2 . . 4 . . . STAY 9 | . . . . . . . 2 . 1 2 . 1 1 . . 2 . . . FOLLOW 9 | . . . . . . . 2 . 1 2 . 1 1 . . 2 . . . AID 2 | . . . . . 1 1 . . . . . . . . . . . . . DROP 1 | . . . . . . . . . . 1 . . . . . . . . . Ally Attacks 1219 | . . . . . 35 18 . . 117 229 45 37 . 36 242 79 202 57 122 Total Damage 42564 | . . . . . 1321 149 . . 3950 6425 1684 632 . 717 6405 2586 10143 1974 6578 Kills 247 | . . . . . 9 2 . . 32 42 7 7 . 6 42 14 49 8 29 Allies Corrupted 14 | . . . . . . . . . 4 1 1 . . . 3 2 3 . . Allies Melted 2 | . . . . . . . . . . . . . . 1 . 1 . . . Borg Created 80 | . . . . . 6 2 4 . 3 14 3 1 . . 14 9 12 4 8 Largest Collective 6 | . . . . . 3 2 5 . 6 5 5 6 . . 4 5 5 5 5 Intel | -11 -10 -10 -9 -9 -6 -6 -6 -6 -5 -5 -5 -5 -5 -4 -4 -3 -3 -2 -1 ------- Run | Yrd Mat Sub Rec Scr Fac Low Low Zio Pro Fac Upp Upp Zhi Pro Fac Res Tes Res Acc Active Infowar (turns) 5986 | . . 1719 . . . . . . . 557 . . . . 620 715 736 693 946 Sensors 3205 | . . . . . . . . . . 557 . . . . 211 517 343 631 946 Seismic 1719 | . . 1719 . . . . . . . . . . . . . . . . . Jamming 3317 | . . . . . . . . . . . . . . . 409 714 736 693 765 Robot Analysis Total 13 | . 3 . 1 5 . . . . . . . . 4 . . . . . . Derelict Logs Recovered 14 | . . 2 . 2 . 2 1 1 2 . 1 2 . 1 . . . . . Drone Launches . | . . . . . . . . . . . . . . . . . . . . Drone Recoveries . | . . . . . . . . . . . . . . . . . . . . Exploration | -11 -10 -10 -9 -9 -6 -6 -6 -6 -5 -5 -5 -5 -5 -4 -4 -3 -3 -2 -1 ------------- Run | Yrd Mat Sub Rec Scr Fac Low Low Zio Pro Fac Upp Upp Zhi Pro Fac Res Tes Res Acc Turns Passed 25361 | 144 1509 3140 806 1423 687 1447 2084 1470 1718 1917 1262 1294 326 791 1608 715 736 693 1591 Spaces Moved 15650 | 65 729 1771 537 993 383 843 1148 844 972 1168 895 1093 219 684 1051 431 455 413 956 Core 118 | 4 . . . . . . . . . . . . . . . . . . 114 Treads 2220 | 61 729 1430 . . . . . . . . . . . . . . . . . Legs . | . . . . . . . . . . . . . . . . . . . . Wheels 13312 | . . 341 537 993 383 843 1148 844 972 1168 895 1093 219 684 1051 431 455 413 842 Hover . | . . . . . . . . . . . . . . . . . . . . Flight . | . . . . . . . . . . . . . . . . . . . . Fastest Speed 50 | 50 160 130 131 140 110 140 140 140 140 110 110 110 110 110 110 110 120 120 50 Average Speed 134 | 153 160 154 134 140 132 153 153 154 153 126 110 110 110 110 115 116 120 120 118 Slowest Speed 180 | 160 160 160 140 140 140 155 155 155 155 180 110 110 150 110 120 120 120 120 175 Overloaded Moves . | . . . . . . . . . . . . . . . . . . . . Propulsion Burnouts . | . . . . . . . . . . . . . . . . . . . . Robots Hopped . | . . . . . . . . . . . . . . . . . . . . Potential Cave-ins 13 | . . . . . . . . . . . . . . . . 2 . 2 9 Cave-ins Triggered 1 | . . . . . . . . . . . . . . . . . . . 1 Teleports 1 | . . . . . . . . . . . . . . . . . . . 1 Exploration Rate (%) 61 | 5 96 70 97 83 9 84 93 83 96 31 90 98 60 94 33 11 53 16 31 Regions Visited 19 Branch Regions 12 Pre-discovered Areas 7 | . . . . . 1 . . 3 . . . . 3 . . . . . . Known Exits Taken 11 | . . . . . 1 1 1 1 1 1 . . . 1 1 1 1 1 . Unknown Exits Taken 8 | 1 1 1 1 1 . . . . . . 1 1 1 . . . . . . Scrap Searched 25 | . . . . 6 . 3 2 4 4 . . 4 . 2 . . . . . Spaces Dug 97 | . . . . . 1 . 3 . 16 3 12 14 . . 13 11 4 8 12 Terrain Destroyed 417 | . 9 20 1 . 12 5 4 . 28 90 25 14 . . 50 11 37 24 87 Melee 1 | . . . . . . . . . . . . . . . . . . 1 . Projectile 106 | . . . 1 . 12 5 4 . 5 14 . . . . 7 11 5 9 33 AOE 310 | . 9 20 . . . . . . 23 76 25 14 . . 43 . 32 14 54 Terrain Rammed . | . . . . . . . . . . . . . . . . . . . . Walls Destroyed . | . . . . . . . . . . . . . . . . . . . . Machines Disabled . | . . . . . . . . . . . . . . . . . . . . Actions | -11 -10 -10 -9 -9 -6 -6 -6 -6 -5 -5 -5 -5 -5 -4 -4 -3 -3 -2 -1 --------- Run | Yrd Mat Sub Rec Scr Fac Low Low Zio Pro Fac Upp Upp Zhi Pro Fac Res Tes Res Acc Total 19110 | 89 988 2084 590 1030 498 968 1434 1008 1166 1537 1144 1157 285 714 1353 600 593 566 1306 Wait 1887 | 2 156 122 24 1 34 83 236 159 120 209 194 26 1 22 160 117 74 75 72 Move 15630 | 64 728 1770 536 992 382 842 1147 843 971 1167 894 1092 218 683 1050 430 454 412 955 Hop . | . . . . . . . . . . . . . . . . . . . . Pick Up 158 | 7 17 15 5 11 8 4 5 1 2 20 7 1 7 1 14 7 5 7 14 Fast Attach 103 | 6 4 6 . 6 10 1 . 2 7 13 4 2 7 . 8 1 5 4 17 Attach 63 | . 1 5 1 . 7 1 . . 3 3 3 2 2 . 5 3 . 2 25 Detach 43 | . . 1 1 . 5 2 . 1 3 7 2 2 3 . 5 1 2 1 7 Swap 118 | . 10 27 1 3 3 5 5 . 6 8 4 2 3 . 15 7 5 5 9 Drop 176 | . 15 10 5 16 3 5 7 2 9 27 11 3 10 . 16 3 8 8 18 Fire 622 | 8 42 31 10 . 36 21 23 . 22 67 19 26 34 8 62 15 20 41 137 Melee 63 | . . 15 7 1 3 2 5 . 1 . . . . . . 4 3 7 15 Ram 2 | . . . . . . . . . . . . . . . . . . . 2 Kick . | . . . . . . . . . . . . . . . . . . . . Crush 10 | 2 8 . . . . . . . . . . . . . . . . . . Escape Stasis 25 | . . . . . . . . . . . . . . . . . . . 25 Rewire 22 | . . . . . . . 1 . 19 1 . . . . . . 1 . . Trap 92 | . 7 82 . . 1 . . . . . . . . . 1 . . . 1 Miscellaneous 96 | . . . . . 6 2 5 . 3 15 6 1 . . 17 12 16 4 9 Route ------- -11/Scrapyard -10/Materials (discovered 5 exits: [*Mat x3] / [*Min] / *Sub) -10/Subcaves (discovered 2 exits: [*Mat] / *Rec) -9/Recycling (discovered 2 exits: [*Fac] / *Scr) -9/Scraptown (discovered 2 exits: *Fac x2) -6/Factory (discovered 2 exits: *Fac / *Low) -6/Lower Caves -6/Lower Caves (discovered 2 exits: *Fac / *Zio) -6/Zion -5/Proximity Caves -5/Factory (discovered 4 exits: *Fac x2 / *Upp x2) -5/Upper Caves -5/Upper Caves (discovered 2 exits: *Fac / *Zhi) -5/Zhirov -4/Proximity Caves -4/Factory (discovered 2 exits: *Res / [*Upp]) -3/Research (discovered 3 exits: Arm / *Tes x2) -3/Testing -2/Research (discovered 5 exits: *Acc x3 / Qua x2) -1/Access History --------- Turn | Location | Event 3 | -11/Scrapyard | Discovered new exit (range 15) 145 | -11/Scrapyard | Entered Materials 310 | -10/Materials | Build established: Mutant 628 | -10/Materials | Discovered new exit (range 8) 746 | -10/Materials | Discovered new exit (range 10) 945 | -10/Materials | Derelicts attacked the area 963 | -10/Materials | Repaired Lgt. Treads 1195 | -10/Materials | Discovered new exit (range 12) 1198 | -10/Materials | Discovered new exit (range 18) 1646 | -10/Materials | Discovered new exit (range 6) 1654 | -10/Materials | Entered Subcaves 1655 | -10/Subcaves | Approached by a straggling Scientist 1728 | -10/Subcaves | Discovered new exit (range 13) 2575 | -10/Subcaves | Ambushed by Subdwellers from Twisted Machinery 2594 | -10/Subcaves | Ambushed by Subdweller buried in earth 2642 | -10/Subcaves | Lost 4 parts (1p1n2u) 2792 | -10/Subcaves | Shifting Twisted Machinery released Flamer 3040 | -10/Subcaves | Discovered new exit (range 13) 3387 | -10/Subcaves | Shifting Twisted Machinery released Sub. Monowheel 3478 | -10/Subcaves | Learned 2 Materials zone layouts 3500 | -10/Subcaves | Learned Materials stockpile data 3660 | -10/Subcaves | Shifting Twisted Machinery released Sub. Laser 3664 | -10/Subcaves | Shifting Twisted Machinery released Sub. Monowheel 3721 | -10/Subcaves | Visited Clippyterm 3726 | -10/Subcaves | Learned Factory fabricator intel 4284 | -10/Subcaves | Visited 4L-MR0's lab 4307 | -10/Subcaves | Found Gun Armor 4309 | -10/Subcaves | Attached Gun Armor, gained temporary slots: Weapon x2 4317 | -10/Subcaves | Found Prototype Special Melee Weapon 4593 | -10/Subcaves | Build established: Gunner 4794 | -10/Subcaves | Entered Recycling 5177 | -9/Recycling | Discovered new exit (range 13) 5566 | -9/Recycling | Scanned before Scraplab entrance 5586 | -9/Recycling | Entered Scraplab 5597 | -9/Recycling | Discovered new exit (range 3) 5600 | -9/Recycling | Entered Scraptown 5600 | -9/Scraptown | System corruption cleaned by C-Scrubber 5866 | -9/Scraptown | Build established: Scavenger-Mutant 5954 | -9/Scraptown | Discovered new exit (range 11) 5974 | -9/Scraptown | Scanned Subdweller tech in exchange for log data 5978 | -9/Scraptown | Learned location of 1 exit from Lower Caves 5983 | -9/Scraptown | Heard Great Nut preacher, LISTEN AND RECITE! 6010 | -9/Scraptown | Visited Bundlers 6144 | -9/Scraptown | Visited Spacefarers 6203 | -9/Scraptown | Visited Awakened 6214 | -9/Scraptown | Visited Shadow of the Wyrm 6272 | -9/Scraptown | Visited Fellowship of the Rings 6280 | -9/Scraptown | Visited TADAMA 6308 | -9/Scraptown | Visited Cyclists 6319 | -9/Scraptown | Build established: Mutant 6332 | -9/Scraptown | Visited UFD Registry 6332 | -9/Scraptown | Registered with UFD as "Matrixchassis" 6381 | -9/Scraptown | Visited A0-MCA Data Center 6391 | -9/Scraptown | Given a B rating by A0-MCA 6394 | -9/Scraptown | Found A0-MCA's Component Scanner 6428 | -9/Scraptown | Visited Analyses Database 6465 | -9/Scraptown | Visited Junk Repository 6532 | -9/Scraptown | Visited Junk Repository 6602 | -9/Scraptown | Visited Derelict Rescue Squad 6610 | -9/Scraptown | Found DRS Beacon 6636 | -9/Scraptown | Visited Scrapoid Research Area 6674 | -9/Scraptown | Delivered Scrap Shield to a Scientist 6737 | -9/Scraptown | Visited Abandonware Association 6752 | -9/Scraptown | Learned abandonware demo "KABOOM.EXE" 6752 | -9/Scraptown | Learned abandonware demo "REBOOT5.EXE" 6786 | -9/Scraptown | Visited Scrap Suit Storage 6793 | -9/Scraptown | Found Scrap Suit 6796 | -9/Scraptown | Found Scrap Suit 6821 | -9/Scraptown | Visited Science Guys 6942 | -9/Scraptown | Met Optimus 6942 | -9/Scraptown | Accepted into 0bPrime 7016 | -9/Scraptown | Discovered new exit (range 5) 7023 | -9/Scraptown | Entered Factory 7023 | -6/Factory | Evolved 8 slots: Power x1, Propulsion x1, Utility x2, Weapon x4 7024 | -6/Factory | Loaded intel: 6 fabricator locations 7041 | -6/Factory | Loaded intel: 8 recycling unit locations 7069 | -6/Factory | Garrison activated, responded to threat 7122 | -6/Factory | Discovered new exit (range 8) 7125 | -6/Factory | Lost 6 parts (1p2n1u2w) 7147 | -6/Factory | Identified exit to Factory 7280 | -6/Factory | Identified 1B-0RG's Assimilator 7285 | -6/Factory | Assimilating Hacker 5a into Collective. 7330 | -6/Factory | Assimilating Fighter 5a into Collective. 7342 | -6/Factory | Assimilating Soldier 5a into Collective. 7437 | -6/Factory | Discovered new exit (range 7) 7514 | -6/Factory | Learned location of Protoforge (-2) 7531 | -6/Factory | Assimilating Slayer 5a into Collective. 7552 | -6/Factory | Assimilating Soldier 5b into Collective. 7580 | -6/Factory | Assimilating Machinist 5a into Collective. 7702 | -6/Factory | Cargo convoy interrupted 7706 | -6/Factory | Identified exit to Lower Caves 7710 | -6/Factory | Entered Lower Caves 7710 | -6/Lower Caves | Accompanied by 1 ally 7711 | -6/Lower Caves | Identified exit to Lower Caves 7712 | -6/Lower Caves | UFD Scientist delivered a prototype 7819 | -6/Lower Caves | Found Prototype Protection 7819 | -6/Lower Caves | Identified Enh. Scrap Shield 7861 | -6/Lower Caves | Encountered a Warlord checkpoint 7888 | -6/Lower Caves | Assimilating W6-KWW(M) into Collective. 7983 | -6/Lower Caves | Learned Factory emergency access door positions 8435 | -6/Lower Caves | Attracted the attention of an 0b10 checkpoint 8523 | -6/Lower Caves | Assimilating Guardian 5a into Collective. 8576 | -6/Lower Caves | Learned 4 Factory zone layouts 9157 | -6/Lower Caves | Entered another Lower Caves area 9157 | -6/Lower Caves | Accompanied by 1 ally 9164 | -6/Lower Caves | Learned Factory stockpile data 9316 | -6/Lower Caves | Discovered exit to Factory (range 10) 9893 | -6/Lower Caves | Discovered new exit (range 5) 9898 | -6/Lower Caves | Identified exit to Zion 10067 | -6/Lower Caves | Encountered a Warlord checkpoint 10080 | -6/Lower Caves | Assimilating IO-N9I(M) into Collective. 10511 | -6/Lower Caves | Activated DRS Beacon 10643 | -6/Lower Caves | Assimilating 8G-Z1Z(h) into Collective. 10647 | -6/Lower Caves | Assimilating 83-ZER(h) into Collective. 10700 | -6/Lower Caves | Assimilating GP-E1Q(h) into Collective. 10779 | -6/Lower Caves | Murdered Warlord Statue 10824 | -6/Lower Caves | Found Prototype Device 11241 | -6/Lower Caves | Entered Zion 11241 | -6/Zion | Accompanied by 5 allies 11334 | -6/Zion | Discovered new exit (range 18) 11492 | -6/Zion | Learned location of Armory (-3) 11966 | -6/Zion | Learned Factory security intel 12040 | -6/Zion | Turned away by Imprinter 12141 | -6/Zion | Learned location of Quarantine (-2) 12186 | -6/Zion | Acquired unknown access codes intercepted by a Zionite 12699 | -6/Zion | Identified exit to Proximity Caves 12711 | -6/Zion | Entered Proximity Caves 12711 | -5/Proximity Caves | Accompanied by 5 allies 12746 | -5/Proximity Caves | Attracted the attention of an 0b10 outpost 12825 | -5/Proximity Caves | Assimilating Sentinel 6a into Collective. 12896 | -5/Proximity Caves | Assimilating Smith 6a into Collective. 12931 | -5/Proximity Caves | Lost 4 allies 12948 | -5/Proximity Caves | Assimilating 92-134(S) into Collective. 13179 | -5/Proximity Caves | Learned Factory emergency access door positions 13605 | -5/Proximity Caves | Learned Factory emergency access door positions 14008 | -5/Proximity Caves | Discovered exit to Factory (range 10) 14062 | -5/Proximity Caves | Lost 4 allies 14429 | -5/Proximity Caves | Entered Factory 14429 | -5/Factory | Accompanied by 1 ally 14429 | -5/Factory | Evolved 2 slots: Propulsion x1, Utility x1 14541 | -5/Factory | Assimilating Sentinel 6b into Collective. 14793 | -5/Factory | Assimilating Smith 6b into Collective. 14845 | -5/Factory | Assimilating Sage 6a into Collective. 14983 | -5/Factory | Spotted B-75 Beast 15001 | -5/Factory | Allies destroyed B-75 Beast 15241 | -5/Factory | Assimilating Conveyor 6a into Collective. 15464 | -5/Factory | Assimilating Slayer 6a into Collective. 15469 | -5/Factory | Assimilating Sage 6b into Collective. 15475 | -5/Factory | Assimilating Sage 6c into Collective. 15500 | -5/Factory | Lost 5 allies 15546 | -5/Factory | Assimilating Soldier 6a into Collective. 15553 | -5/Factory | Scrapoid reinforcements arrived 15591 | -5/Factory | Discovered new exit (range 9) 15605 | -5/Factory | Identified exit to Factory 15658 | -5/Factory | Scrapoid reinforcements arrived 15771 | -5/Factory | Lost 6 allies 15853 | -5/Factory | Repaired Missile Launcher 15959 | -5/Factory | Assimilating 05F05-D into Collective. 15962 | -5/Factory | Assimilating 05F03-D into Collective. 15970 | -5/Factory | Assimilating 05F09-D into Collective. 16004 | -5/Factory | Assimilating 05F04-D into Collective. 16037 | -5/Factory | Discovered exit to Factory (range 18) 16097 | -5/Factory | Assimilating Soldier 6b into Collective. 16129 | -5/Factory | Identified exit to Upper Caves 16229 | -5/Factory | First assault squad dispatched 16241 | -5/Factory | Found Prototype Processor 16241 | -5/Factory | Identified Exp. Targeting Computer 16247 | -5/Factory | Found Faulty Exp. Targeting Computer 16250 | -5/Factory | Found Exp. Targeting Computer 16287 | -5/Factory | Build established: Scrapper 16294 | -5/Factory | Assimilating Veteran 6a into Collective. 16346 | -5/Factory | Entered Upper Caves 16346 | -5/Upper Caves | Accompanied by 5 allies 16376 | -5/Upper Caves | Spotted B-75 Beast 16392 | -5/Upper Caves | Allies destroyed B-75 Beast 16750 | -5/Upper Caves | Assimilating Soldier 6c into Collective. 16969 | -5/Upper Caves | Assimilating Extractor 6a into Collective. 17102 | -5/Upper Caves | Encountered a Warlord checkpoint 17188 | -5/Upper Caves | Assimilating EG-04Q(M) into Collective. 17496 | -5/Upper Caves | Discovered new exit (range 10) 17608 | -5/Upper Caves | Entered another Upper Caves area 17608 | -5/Upper Caves | Accompanied by 5 allies 17608 | -5/Upper Caves | Discovered exit to Factory (range 15) 17824 | -5/Upper Caves | Attracted the attention of an 0b10 checkpoint 17831 | -5/Upper Caves | Assimilating Sentinel 6c into Collective. 18634 | -5/Upper Caves | Ambushed by research squad 18657 | -5/Upper Caves | Discovered new exit (range 7) 18902 | -5/Upper Caves | Entered Zhirov 18902 | -5/Zhirov | Accompanied by 6 allies 18902 | -5/Zhirov | Discovered new exit (range 4) 18922 | -5/Zhirov | Met Zhirov 18941 | -5/Zhirov | Zhirov requested help retrieving the SGEMP Prototype 18963 | -5/Zhirov | Learned location of Testing (-3) 18963 | -5/Zhirov | Learned location of Command (-1) 18987 | -5/Zhirov | Found Alien Artifact 18987 | -5/Zhirov | Identified Integrated Dissipator 18987 | -5/Zhirov | Installed Integrated Dissipator, increased core heat dissipation (+20) 19148 | -5/Zhirov | Found Alien Artifact 19228 | -5/Zhirov | Entered Proximity Caves 19228 | -4/Proximity Caves | Accompanied by 6 allies 19273 | -4/Proximity Caves | Learned Research terminal intel 19386 | -4/Proximity Caves | Spotted B-86 Titan 19397 | -4/Proximity Caves | Allies destroyed B-86 Titan 19898 | -4/Proximity Caves | Discovered exit to Factory (range 11) 20019 | -4/Proximity Caves | Entered Factory 20019 | -4/Factory | Accompanied by 5 allies 20019 | -4/Factory | Evolved 2 slots: Utility x2 20060 | -4/Factory | Discovered new exit (range 22) 20291 | -4/Factory | Assimilating Assassin 7a into Collective. 20325 | -4/Factory | Assimilating Assassin 7b into Collective. 20328 | -4/Factory | Assimilating Assassin 7c into Collective. 20348 | -4/Factory | Lost 6 allies 20378 | -4/Factory | Assimilating Conveyor 7a into Collective. 20415 | -4/Factory | Assimilating Veteran 7a into Collective. 20432 | -4/Factory | Build established: Hacker-Scrapper 20498 | -4/Factory | Found Quantum Capacitor 20564 | -4/Factory | Assimilating Sentinel 7a into Collective. 20570 | -4/Factory | Assimilating Sentinel 7b into Collective. 20718 | -4/Factory | Repaired Rnf. Fission Core 20769 | -4/Factory | First assault squad dispatched 20852 | -4/Factory | Assimilating Beamer 7a into Collective. 21025 | -4/Factory | Build established: Scavenger-Scrapper 21025 | -4/Factory | Assimilating Assassin 7d into Collective. 21030 | -4/Factory | Assimilating Assassin 7e into Collective. 21074 | -4/Factory | Discovered new exit (range 6) 21082 | -4/Factory | Lost 3 allies 21096 | -4/Factory | Assimilating Sage 7a into Collective. 21135 | -4/Factory | Assimilating Sage 7b into Collective. 21504 | -4/Factory | Repaired Hvy. Neutron Cannon 21578 | -4/Factory | Assimilating Sage 7c into Collective. 21596 | -4/Factory | Identified exit to Research 21604 | -4/Factory | Assimilating Sage 7d into Collective. 21627 | -4/Factory | Entered Research 21627 | -3/Research | Accompanied by 1 ally 21627 | -3/Research | Evolved 2 slots: Utility x2 21628 | -3/Research | Identified exit to Armory 21629 | -3/Research | Loaded intel: 22 terminal locations 21718 | -3/Research | Scrapoid reinforcements arrived 21722 | -3/Research | Assimilating 03R15-D into Collective. 21753 | -3/Research | Assimilating 03R12-D into Collective. 21784 | -3/Research | Assimilating 03R14-D into Collective. 21811 | -3/Research | Found Scrap Suit 21819 | -3/Research | Assimilating 03R16-D into Collective. 21877 | -3/Research | First assault squad dispatched 21944 | -3/Research | Build established: Scavenger-Mutant 21976 | -3/Research | Assimilating Eye 8a into Collective. 22011 | -3/Research | Identified exit to Testing 22052 | -3/Research | Assimilating Master 8a into Collective. 22111 | -3/Research | Assimilating Veteran 8a into Collective. 22121 | -3/Research | Lost 6 allies 22258 | -3/Research | Assimilating Warden 8a into Collective. 22307 | -3/Research | Assimilating Warden 8b into Collective. 22342 | -3/Research | Entered Testing 22342 | -3/Testing | Accompanied by 2 allies 22382 | -3/Testing | Found Prototype Energy Cannon 22382 | -3/Testing | Identified Cld. Nova Cannon 22442 | -3/Testing | Scanned by Researcher 22443 | -3/Testing | Garrison activated, responded to threat 22451 | -3/Testing | Assimilating Assassin 8a into Collective. 22455 | -3/Testing | Assimilating Veteran 8b into Collective. 22562 | -3/Testing | Assimilating Eye 8b into Collective. 22609 | -3/Testing | Assimilating Master 8b into Collective. 22621 | -3/Testing | Assimilating Master 8c into Collective. 22635 | -3/Testing | Lost 4 allies 22664 | -3/Testing | Spotted Alpha 7 22665 | -3/Testing | Assimilating Champion 8a into Collective. 22670 | -3/Testing | Assimilating Veteran 8c into Collective. 22679 | -3/Testing | Assimilating Plague 8a into Collective. 22700 | -3/Testing | Rewired 4U-353(L) 22711 | -3/Testing | Allies destroyed Alpha 7 22713 | -3/Testing | Assimilating 4U-353(L) into Collective. 22783 | -3/Testing | Lost 4 allies 22841 | -3/Testing | Assimilating Master 8d into Collective. 22842 | -3/Testing | First assault squad dispatched 22845 | -3/Testing | Spotted PG-VLTXM16L1G 22846 | -3/Testing | Assimilating Master 8e into Collective. 22863 | -3/Testing | Allies destroyed PG-VLTXM16L1G 22868 | -3/Testing | Found Exp. Targeting Computer 22945 | -3/Testing | Discovered new exit (range 14) 22947 | -3/Testing | Assimilating Analyst 8a into Collective. 23067 | -3/Testing | Repaired Centrium Medium Armor Plating 23077 | -3/Testing | Identified exit to Research 23078 | -3/Testing | Entered Research 23078 | -2/Research | Accompanied by 4 allies 23078 | -2/Research | Evolved 2 slots: Utility x2 23166 | -2/Research | Spotted B-90 Cyclops 23181 | -2/Research | Allies destroyed B-90 Cyclops 23287 | -2/Research | Identified exit to Access 23287 | -2/Research | Identified exit to Quarantine 23328 | -2/Research | First assault squad dispatched 23348 | -2/Research | Assimilating Swordsman 9a into Collective. 23357 | -2/Research | Assimilating Enforcer 9a into Collective. 23398 | -2/Research | Lost 4 allies 23643 | -2/Research | Assimilating Conveyor 9a into Collective. 23735 | -2/Research | Assimilating Warden 9a into Collective. 23768 | -2/Research | Spotted B-90 Cyclops 23771 | -2/Research | Entered Access 23771 | -1/Access | Accompanied by 2 allies 23771 | -1/Access | Evolved 2 slots: Power x1, Utility x1 23824 | -1/Access | Assimilating Enforcer 10a into Collective. 23827 | -1/Access | Assimilating Enforcer 10b into Collective. 23832 | -1/Access | Assimilating Enforcer 10c into Collective. 23837 | -1/Access | Assimilating Enforcer 10d into Collective. 23972 | -1/Access | Assimilating Conveyor 10a into Collective. 24021 | -1/Access | First assault squad dispatched 24255 | -1/Access | Assimilating Administrator 10a into Collective. 24273 | -1/Access | Lost 3 allies 24435 | -1/Access | Assimilating Enforcer 10e into Collective. 24473 | -1/Access | Assimilating Conveyor 10b into Collective. 24536 | -1/Access | Crushed by falling debris 24537 | -1/Access | Lost 4 allies 24598 | -1/Access | Lost 7 parts (1p4u2w) 24727 | -1/Access | System corruption reached 10% 24820 | -1/Access | Spotted B-99 Colossus 24827 | -1/Access | Identified Transdimensional Reconstructor 24827 | -1/Access | Warped through subspace 24880 | -1/Access | Lost 8 parts (2p6u) 25203 | -1/Access | High security lockdown imminent 25234 | -1/Access | Lost 4 parts (2p1u1w) 25274 | -1/Access | Core integrity fell below 50% 25283 | -1/Access | High security lockdown engaged 25291 | -1/Access | System corruption reached 30% 25303 | -1/Access | Core integrity fell below 20% 25339 | -1/Access | Lost 16 parts (3p4n4u5w) 25362 | -1/Access | Destroyed by Y-72 Warden via exploding Wave Collapse Detector Last Messages --------------- 25309_ The unstable cave ceiling collapses. 25316_ P-80 Master resets S-43 Plague, system corruption cleaned. 25317_ S-43 Plague destroyed. 25334_ C-45 Heavy ARC bursts open, deploying its payload. 25334_ G-73 Enforcer unfolds itself. 25334_ B-74 Champion unfolds itself. 25334_ G-73 Enforcer unfolds itself. 25334_ I-47 Archangel unfolds itself. 25342_ System corrupted: Matter fused (-8). 25345_ Adv. Heat Sink destroyed. 25349_ Penetrated by Slug. 25349_ Slug penetrates Wall. 25357_ Biometal Heavy Treads destroyed. 25357_ Exp. Heat Sink destroyed. 25359_ TF Node disabled. 25359_ Adv. Sensor Array tumbles out of TF Node. 25362_ Slug penetrates Wall. 25362_ Wave Collapse Detector explodes. 25362_ U-05 Engineer destroyed. Map ----- +----------------------------------------------------+ | ?????????????# " #? | | ?????????????# ############/######+######## #? | | ?????????????##????????????? ?? ?????# #? | | ?????????????????????????? # ] ???# #? | | ????????????????????????! !! #% #?# #? | | ???????????????????????# !! # #?# #? | | ???????????????????????#! ! !! # ! #?# #? | | ???????????????????????# #= ] /#?# #? | | ???????????????????????# # #?# #? | | ???????????????????????# # #?# #? | | ???????????????????????#/###################?# #? | | ??????????????????????? ????????????????????# #? | | ??????????????????????##?????????????????????# #? | | ???????????????? ???????????????????????????# #? | | ?????????????? ?????????????????########?# #? | | ?????????????? #####+#####?????# = " ?# #? | | ??????????????? = #?????? """ # #? | | ???????????????? = w #?????#] """ # #? | | ????????????????? #?????# " + #? | | ??????????????????# #?????# # #? | | ??????????????????# #?????# # #? | | ??????????????????# #?????# ?# #? | | ??????????????????? * #?????# ?# #? | | ????????????????????? % = #?????########??# #? | | ??????????????????????? ?????????????????# #? | | ?????????????????????####@####???????????????# #? | | ??????????? ###### #???????????????# #? | | ??????????# #???????????????# #? | | ???????????????####### #???######?????## ## | | ?????????????????????# Y #???# ####### # | | ?????????????????????# ##### ! # | | ?????????????????????# # | | ?????????????????????# ##### ####### # | | ?????????????????????### ###???##+###?????##+### | | ???????????????????????# #????? ???????????? | | ???????????????????????# #??? ?????????? | | ???????????????????????# #??# " #????????? | | ???????????????????????# #??# """ #????????? | | ???????????????????????# #??# """#????????? | | ???????????????????????# #??# " #????????? | | ???????????????????????# #??# ??????????? | | ???????????????????????# ???# ??????????? | | ???????????????????????# ???########+#?????????? | | ??????????????????????? ??????????????????????? | | ????????????????????????? ???????????????????????? | | ?????????????????????????????????????????????????? | | ?????????????????????????????????????????????????? | | ?????????????????????????????????????????????????? | | ?????????????????????????????????????????????????? | | ?????????????????????????????????????????????????? | +----------------------------------------------------+ Best States ------------- Heat Dissipation 126 Energy Generation 61 Energy Capacity 785 Matter Stores 480 Matter Capacity 500 Sight Range 16 Robot Scan Range 16 Terrain Scan Density 10 Jamming Range 16 Additional Mass Support 16 Armor Coverage 800 Core Shielding 40 Propulsion Shielding 33 Weapon Cycling 25 Evasion (%) 50 Targeting Accuracy 12 Core Analysis 6 Recoil Reduction 2 Offensive Hacking 24 Authchip Count 1 Trap Extractor Capacity 4 Item Schematics ----------------- Hcp. Storage Unit | -10/Materials | Hacked Adv. Treads | -9/Recycling | Hacked Arm. Wheel | -6/Factory | Scanalyzed Assault Drone Bay | -5/Zhirov | Free Exp. Heat Sink | -5/Zhirov | Free Exp. Optical Array | -5/Zhirov | Free Imp. Arc Thrower | -5/Zhirov | Free Cld. Antigrav System | -3/Testing | Archive Cld. Plasma Rifle | -3/Testing | Archive Adv. Energy Well | -3/Testing | Archive Imp. Thermal Defense Suite | -3/Testing | Archive Exp. Shield Generator | -3/Testing | Archive Exp. Terrain Scan Processor | -3/Testing | Archive Centrium Heavy Treads | -2/Research | Archive Robot Schematics ------------------ T-07 Excavator | -3/Testing | Archive A-27 Freighter | -2/Research | Archive Fabricated ------------ Nothing Repaired ---------- Lgt. Treads | 61% | -10/Materials Missile Launcher | 60% | -5/Factory Rnf. Fission Core | 72% | -4/Factory Hvy. Neutron Cannon | 35% | -4/Factory Centrium Medium Armor Plating | 35% | -3/Testing Studied --------- Arm. Wheel | -6/Factory | Hacked Arm. Huge Wheel | -5/Factory | Hacked Rnf. Fission Core | -4/Factory | Hacked Missile Launcher | -4/Factory | Hacked Antimatter Reactor | -2/Research | Hacked Alien Tech Used ----------------- Integrated Dissipator Transdimensional Reconstructor Achievements -------------- None Challenges ------------ None Game ------ Seed SmartbombStructuralSystem Manual? 0 Play Time 02:52:22 Cumulative 2133.5 hours Start 2026.02.15 @ 11:35:37 End 2026.02.15 @ 14:28:01 Sessions 1 Manual Loads 0 Difficulty Rogue Special Mode None Game No. 1358 Rogue 1354 Adventurer 4 Explorer 0 Win Type - Total 297 Types 224/13/23/11/3/1/4/10/5/3 Lore% 98 Gallery% 95 Achievement% 88 Wizard Run 0 Options --------- Layout 2 ASCII 0 Keyboard 1 Movement Vi Keybinds 0 Fullscreen 0 Font 24/Terminus Map View 59x48 Zoom Use 0% Tactical HUD 1 Map Filters NONE Filters NONE Steam 1 RUN: 2831eaf7-4a27-40c9-a25e-d8e370720ef9